bitfinex-derivatives/quotes_ETHF0:USTF0_20250504
["timestamp","ask_amount","ask_price","bid_price","bid_amount"]
[1746401662323,2.2204,1809.6,1809.5,1.10507]
[1746401662518,2.2204,1809.6,1809.4,3.2078]
[1746401662719,1.10513,1809.5,1809.3,5.40821]
[1746401662923,2.2204,1809.4,1809.3,5.40821]
[1746401663724,5.00714,1809.8,1809.6,1.10501]
[1746401663725,3.34973,1809.8,1809.6,1.10501]
[1746401663926,2.0775,1809.7,1809.6,1.10501]
[1746401664119,3.1825,1809.7,1809.5,1.10506]
[1746401664321,2.0775,1809.7,1809.3,4.303]
[1746401664532,1.10517,1809.4,1809.3,4.303]
[1746401664720,1.10517,1809.4,1809.3,5.40823]
[1746401665529,3.18265,1809.5,1809.4,1.10517]
[1746401665832,3.18265,1809.5,1809.3,4.303]
[1746401666024,3.18265,1809.5,1809.4,1.10517]
[1746401666523,2.0775,1809.5,1809.4,1.10517]
[1746401666733,2.0775,1809.5,1809.4,4.31297]
[1746401667227,2.0775,1809.5,1809.4,6.59117]
[1746401667426,1.66068896,1809.5,1809.4,11.59117]
[1746401667621,5.824,1809.6,1809.5,1.10511]
[1746401667931,5.824,1809.6,1809.5,3.38331]
[1746401669328,5.824,1809.6,1809.5,1.10511]
[1746401669835,6.92905,1809.6,1809.4,1.10512]
[1746401670026,1.10524,1809.3,1809.1,10.94206656]
[1746401670221,3.2078,1809.5,1809.2,1.10526]
[1746401670429,9.512,1809.6,1809.4,1.10517]
[1746401670632,2.2462,1809.5,1809.4,1.10517]
[1746401670825,1.10517,1809.4,1809.3,3.2078]
[1746401671020,3.2078,1809.4,1809.1,10.94206656]
[1746401671221,2.2462,1809.3,1809.2,1.10524]
[1746401671427,2.2462,1809.3,1809.2,41.90524]
[1746401671827,2.2462,1809.3,1809.2,44.05264]
[1746401673032,2.2462,1809.3,1809.2,41.90524]
[1746401674029,2.2462,1809.3,1809.2,1.10524]
[1746401674227,8.1088,1809.3,1809.2,1.10524]
[1746401674429,9.21403,1809.3,1809.1,3.2078]
[1746401674732,9.21403,1809.3,1809.2,1.10529]
[1746401674926,8.1088,1809.3,1809.2,1.10529]
[1746401675634,9.21403,1809.3,1809.2,1.10529]
[1746401676436,1.10529,1809.2,1809.1,45.1131]
[1746401676633,3.24189,1809.2,1809.1,41.9053]
[1746401676823,2.1366,1809.2,1809.1,41.9053]
[1746401677233,5.8246,1809.2,1809.1,41.9053]
[1746401678135,2.1366,1809.2,1809.1,41.9053]
[1746401679238,9.0318,1809.5,1809.4,1.10517]
[1746401679443,5.824,1809.5,1809.4,1.10517]
[1746401680336,7.9992,1809.7,1809.6,1.10505]
[1746401680539,10.25,1809.7,1809.6,1.10505]
[1746401680732,8.0748,1809.7,1809.6,1.10505]
[1746401680932,8.0377,1809.9,1809.8,1.10492]
[1746401681240,1.10493,1809.8,1809.7,1.10495]
[1746401681437,1.105,1809.7,1809.4,4.305]
[1746401681732,1.105,1809.7,1808.5,15.29871744]
[1746401681733,1.1051,1809.6,1809.5,1.1051]
[1746401681938,17.69568,1809.9,1809.3,5.52614]
[1746401682142,3.39795,1809.8,1809.7,1.10498]
[1746401682337,2.293,1809.8,1809.7,1.10498]
[1746401683940,8.0377,1809.9,1809.8,1.10492]
[1746401684141,2.2137,1809.9,1809.8,1.10492]
[1746401684746,7.9768,1810.0,1809.9,1.10486]
[1746401684942,6.92871,1810.2,1810.1,1.10474]
[1746401685250,10.61671,1810.2,1810.1,1.10474]
[1746401685443,9.512,1810.2,1810.1,1.40680074]
[1746401685642,10.61668,1810.2,1810.1,1.40680074]
[1746401685948,9.512,1810.2,1810.1,1.40680074]
[1746401686340,3.688,1810.2,1810.1,1.40680074]
[1746401686541,3.688,1810.2,1810.1,1.10474]
[1746401687150,2.2114,1810.2,1810.1,1.10474]
[1746401687550,5.824,1810.5,1810.2,2.76159]
[1746401687745,1.10451,1810.5,1810.4,1.10454]
[1746401687947,2.3374,1810.5,1810.4,1.10454]
[1746401688142,6.0254,1810.5,1810.4,1.10454]
[1746401688455,3.688,1810.5,1810.4,1.10454]
[1746401688856,6.0254,1810.5,1810.4,1.10454]
[1746401689051,9.2332,1810.5,1810.3,4.305]
[1746401689248,1.10456,1810.4,1810.3,4.305]
[1746401689448,3.44196,1810.4,1810.3,4.305]
[1746401689654,3.44196,1810.4,1810.3,45.105]
[1746401689954,3.44196,1810.4,1810.3,46.20962]
[1746401690252,7.12996,1810.4,1810.3,46.20962]
[1746401691350,10.33776,1810.4,1810.3,40.8]
[1746401691553,1.10468,1810.2,1810.1,1.10472]
[1746401691754,1.10467,1810.3,1810.2,1.10467]
[1746401692048,12.86507,1810.3,1810.2,1.10467]
[1746401693253,1.10473,1810.2,1810.1,1.10472]
[1746401693558,2.2484,1810.2,1810.1,1.10472]
[1746401694156,5.9364,1810.2,1810.1,1.10472]
[1746401694358,1.10474,1810.1,1810.0,41.90474]
[1746401694655,1.10484,1810.0,1809.9,1.10484]
[1746401694856,3.34947,1810.1,1810.0,1.1048]
[1746401695057,2.2447,1810.1,1810.0,1.1048]
[1746401695259,5.824,1810.3,1810.2,1.10468]
[1746401695456,1.10459,1810.4,1810.3,1.10459]
[1746401696256,1.10459,1810.4,1810.3,1.10462]
[1746401696257,4.79261,1810.4,1810.3,1.10462]
[1746401696456,1.10463,1810.3,1810.2,1.10462]
[1746401696655,4.79261,1810.4,1810.3,1.10462]
[1746401697349,4.79256,1810.4,1810.3,1.10462]
[1746401697663,3.688,1810.4,1810.3,1.10462]
[1746401698361,7.09446,1810.4,1810.3,1.10462]
[1746401698660,5.9899,1810.4,1810.0,5.4943]
[1746401698850,5.9899,1810.4,1809.8,40.8]
[1746401698851,2.76171,1810.2,1809.8,44.0078]
[1746401699054,4.5612,1810.1,1809.8,40.8]
[1746401699254,5.66599,1810.1,1810.0,1.1048]
[1746401699764,1.10483,1810.0,1809.9,1.10483]
[1746401699956,3.29903,1810.0,1809.9,1.10483]
[1746401700157,3.29903,1810.0,1809.8,42.9577]
[1746401700158,1.10486,1809.9,1809.8,47.27037]
[1746401700357,2.1942,1809.9,1809.8,47.27037]
[1746401701362,3.29906,1809.9,1809.8,47.27037]
[1746401701555,2.1942,1809.9,1809.8,47.27037]
[1746401701755,2.1942,1809.9,1809.8,45.11272]
[1746401701756,3.29906,1809.9,1809.8,45.11272]
[1746401702157,6.98706,1809.9,1809.8,45.11272]
[1746401703267,6.98706,1809.9,1809.8,4.31272]
[1746401703466,5.8822,1809.9,1809.8,4.31272]
[1746401704063,5.8822,1809.9,1809.8,1.10492]
[1746401704268,3.688,1809.9,1809.8,3.26862]
[1746401705168,5.824,1810.0,1809.9,1.10486]
[1746401705469,5.824,1810.0,1809.9,3.26856]
[1746401705769,8.0542,1810.0,1809.9,3.26856]
[1746401707973,9.159,1810.0,1809.9,3.26856]
[1746401708171,12.847,1810.0,1809.9,1.10486]
[1746401708470,11.7422,1810.0,1809.7,47.2729]
[1746401708770,1.10487,1809.9,1809.7,47.2729]
[1746401708972,2.2362,1809.8,1809.7,46.20798]
[1746401710870,2.2362,1809.8,1809.7,48.54398]
[1746401712775,3.34117,1809.8,1809.6,1.10501]
[1746401712973,8.0602,1809.8,1809.6,1.10501]
[1746401713168,12.85318,1809.8,1809.6,1.10501]
[1746401713373,2.3339,1809.7,1809.6,41.90501]
[1746401713575,4.5273,1809.7,1809.6,41.90501]
[1746401714171,8.2153,1809.7,1809.6,41.90501]
[1746401714777,3.688,1809.7,1809.6,45.11281]
[1746401715179,5.824,1809.8,1809.7,1.10498]
[1746401715373,5.824,1809.8,1809.7,5.29498]
[1746401715975,5.824,1809.8,1809.7,7.43348]
[1746401718274,3.38497,1809.9,1809.8,1.10492]
[1746401718475,2.2801,1809.9,1809.7,1.10495]
[1746401718782,2.2801,1809.9,1809.8,1.10492]
[1746401719283,5.9681,1809.9,1809.8,1.10492]
[1746401719782,5.9681,1809.9,1809.8,4.31272]
[1746401720285,2.2801,1809.9,1809.8,4.31272]
[1746401721083,9.0318,1810.4,1810.1,2.76181]
[1746401721376,2.2785,1810.2,1810.1,1.10474]
[1746401721775,3.38318,1810.2,1810.1,1.10474]
[1746401721977,3.38318,1810.2,1810.0,1.10476]
[1746401722171,3.38318,1810.2,1809.9,4.19]
[1746401722172,10.27898,1810.2,1809.9,4.19]
[1746401722376,10.27901,1810.2,1809.9,4.19]
[1746401722576,10.27901,1810.2,1810.0,1.10474]
[1746401722785,7.07121,1810.2,1810.1,1.10474]
[1746401722976,5.9665,1810.2,1810.1,1.10474]
[1746401723684,7.07118,1810.2,1810.1,1.10474]
[1746401724378,5.9665,1810.2,1810.1,1.10474]
[1746401724889,7.07118,1810.2,1810.1,1.10474]
[1746401725184,5.9665,1810.2,1810.1,1.10474]
[1746401725384,10.27898,1810.2,1810.1,1.10474]
[1746401725583,1.10479,1810.1,1810.0,1.10476]
[1746401725785,1.10485,1810.0,1809.9,1.10484]
[1746401725980,12.93525,1810.0,1809.9,1.10484]
[1746401726187,15.0606,1810.0,1809.9,1.10484]
[1746401728083,1.10498,1809.7,1809.6,11.02283747]
[1746401728279,4.31278,1809.7,1809.6,11.02283747]
[1746401729291,6.8958,1809.7,1809.6,12.12788747]
[1746401729478,3.688,1809.7,1809.6,12.12788747]
[1746401729684,3.688,1809.7,1809.6,15.33568747]
[1746401729883,3.688,1809.7,1809.6,19.52568747]
[1746401730187,2.6489,1809.8,1809.7,1.10498]
[1746401730383,2.6489,1809.8,1809.7,3.75268]
[1746401730583,8.6226,1810.0,1809.9,1.10486]
[1746401730883,11.1775,1810.0,1809.9,1.10486]
[1746401731188,14.8655,1810.0,1809.9,1.10486]
[1746401731787,15.9703,1810.0,1809.9,1.10486]
[1746401731990,14.8655,1810.0,1809.9,1.10486]
[1746401732695,15.9703,1810.0,1809.9,1.10486]
[1746401733086,14.8655,1810.0,1809.8,1.10491]
[1746401733387,15.97035,1810.0,1809.8,1.10488]
[1746401733588,1.10486,1809.9,1809.8,1.10488]
[1746401733787,3.71696,1809.9,1809.8,1.10488]
[1746401734191,7.40496,1809.9,1809.8,1.10488]
[1746401734499,1.10498,1809.7,1809.6,18.42063747]
[1746401734687,1.10498,1809.7,1809.6,14.23063747]
[1746401735193,9.72745,1810.0,1809.6,16.99321747]
[1746401735495,2.6121,1809.9,1809.8,1.10492]
[1746401735794,2.6121,1809.9,1809.8,8.47794738]
[1746401736188,6.3001,1809.9,1809.8,8.47794738]
[1746401736486,7.40496,1809.9,1809.8,8.47794738]
[1746401736688,6.3001,1809.9,1809.8,8.47794738]
[1746401737089,7.40496,1809.9,1809.8,8.47794738]
[1746401737287,7.40496,1809.9,1809.8,7.37302738]
[1746401740702,13.22896,1809.9,1809.8,7.37302738]
[1746401742698,13.22896,1809.9,1809.5,15.69449208]
[1746401742699,1.10505,1809.6,1809.5,8.47809738]
[1746401742886,6.92905,1809.6,1809.5,8.47809738]
[1746401743091,10.61705,1809.6,1809.5,8.47809738]
[1746401743297,13.21195,1809.6,1809.5,8.47809738]
[1746401743597,13.21195,1809.6,1809.5,7.37302738]
[1746401745399,1.10511,1809.5,1809.4,8.47817738]
[1746401745596,3.85741,1809.5,1809.4,11.18237738]
[1746401746201,7.54541,1809.5,1809.4,11.18237738]
[1746401746807,7.54541,1809.5,1809.4,10.07722738]
[1746401747094,7.54541,1809.5,1809.4,11.18239738]
[1746401747303,7.54541,1809.5,1809.4,10.07722738]
[1746401748002,7.54541,1809.5,1809.4,11.18239738]
[1746401748700,7.54541,1809.5,1809.4,10.07722738]
[1746401748896,3.688,1809.5,1809.4,14.39019738]
[1746401749102,5.824,1809.6,1809.5,1.10511]
[1746401749301,5.824,1809.6,1809.5,6.27071]
[1746401750103,9.512,1809.6,1809.5,6.27071]
[1746401751114,5.824,1809.6,1809.5,6.27071]
[1746401751713,5.824,1809.6,1809.5,26.25458599]
[1746401752107,9.512,1809.6,1809.5,26.25458599]
[1746401752508,3.688,1809.6,1809.5,26.25458599]
[1746401753117,7.53838,1809.8,1809.5,25.14947599]
[1746401753312,7.53838,1809.8,1809.7,1.10498]
[1746401753508,1.10498,1809.7,1809.6,6.26379]
[1746401753713,7.53834,1809.8,1809.6,6.26379]
[1746401753913,7.53834,1809.8,1809.7,2.5429]
[1746401754615,7.53834,1809.8,1809.7,3.64788]
[1746401755213,7.53834,1809.8,1809.7,2.5429]
[1746401755916,7.53834,1809.8,1809.7,3.64788]
[1746401756915,7.53834,1809.8,1809.7,11.02611577]
[1746401758617,6.4334,1809.8,1809.7,11.02611577]
[1746401758818,7.53832,1809.8,1809.7,11.02611577]
[1746401759013,6.4334,1809.8,1809.7,11.02611577]
[1746401760011,7.53832,1809.8,1809.7,11.02611577]
[1746401760518,3.688,1809.8,1809.7,14.23391577]
[1746401761018,3.688,1809.8,1809.7,60.03391577]
[1746401761219,7.02294,1810.3,1810.2,1.10468]
[1746401761410,3.81514,1810.3,1810.2,1.10468]
[1746401761810,3.81514,1810.3,1810.1,3.8587]
[1746401762013,3.81514,1810.3,1810.2,3.85868]
[1746401762214,7.50314,1810.3,1810.2,2.754]
[1746401763019,7.50314,1810.3,1810.2,3.85868]
[1746401763219,3.688,1810.3,1810.2,3.85868]
[1746401763610,3.2078,1810.8,1810.7,1.10437]
[1746401763813,2.6881,1810.9,1810.8,1.10431]
[1746401764014,5.51820017,1811.0,1810.9,1.10425]
[1746401764420,5.51820017,1811.0,1810.9,3.73795]
[1746401766320,5.51820017,1811.0,1810.9,4.44365415]
[1746401767121,5.51820017,1811.0,1810.9,13.13165415]
[1746401767421,5.51820017,1811.0,1810.9,53.92734985]
[1746401767721,5.51820017,1811.0,1810.9,48.92734985]
[1746401767919,3.79207,1811.4,1811.2,1.10406]
[1746401768219,1.10401,1811.3,1811.1,1.10408]
[1746401768425,2.589,1811.2,1811.1,3.79168]
[1746401768724,2.589,1811.2,1811.1,4.49176787]
[1746401769015,4.79198,1811.4,1811.1,4.49145606]
[1746401769220,4.79198,1811.4,1811.3,1.10401]
[1746401769221,6.277,1811.4,1811.3,1.10401]
[1746401770124,3.688,1811.4,1811.3,1.10401]
[1746401770817,3.688,1811.4,1811.3,1.80374061]
[1746401771321,2.6589,1811.6,1811.5,1.10389]
[1746401771716,3.2078,1811.7,1811.6,1.10383]
[1746401772321,6.8958,1811.7,1811.6,1.10383]
[1746401772529,1.10383,1811.6,1811.4,7.93921]
[1746401772823,2.6589,1811.5,1811.4,7.93921]
[1746401773220,3.2078,1811.7,1811.6,1.10383]
[1746401773432,2.5606,1811.7,1811.6,1.10383]
[1746401773723,2.7375,1811.8,1811.7,1.10376]
[1746401774027,2.5606,1811.9,1811.8,1.1037]
[1746401774212,3.688,1811.9,1811.8,1.1037]
[1746401774413,3.688,1811.9,1811.6,5.8591]
[1746401774625,3.688,1811.9,1811.8,1.1037]
[1746401775115,1.1037,1811.8,1811.5,0.69794148]
[1746401775319,3.7391,1811.8,1811.6,1.10381]
[1746401775621,3.7391,1811.8,1811.5,4.31165]
[1746401775821,3.7391,1811.8,1811.5,3.2078]
[1746401775822,2.6656,1811.7,1811.5,3.2078]
[1746401776123,2.6656,1811.7,1811.6,1.10383]
[1746401776717,2.6656,1811.7,1811.2,5.9725]
[1746401776921,1.10387,1811.6,1811.4,1.10395]
[1746401777121,4.79187,1811.6,1811.4,1.10395]
[1746401777726,1.10389,1811.5,1811.4,1.10395]
[1746401777919,1.10389,1811.5,1811.3,5.18095]
[1746401778119,4.79189,1811.5,1811.4,1.10395]
[1746401779025,3.688,1811.5,1811.4,1.10395]
[1746401779727,4.79189,1811.5,1811.4,1.10395]
[1746401780317,3.688,1811.5,1811.4,1.10395]
[1746401780617,3.688,1811.5,1811.4,4.31175]
[1746401780816,3.688,1811.5,1811.4,6.86745]
[1746401781226,1.10384,1811.6,1811.4,4.3117]
[1746401781426,3.76941,1811.7,1811.5,1.10389]
[1746401782115,7.45741,1811.7,1811.5,1.10389]
[1746401782315,1.10386,1811.6,1811.5,1.10387]
[1746401782617,3.688,1811.7,1811.6,1.10383]
[1746401783221,2.6354,1811.8,1811.7,1.10376]
[1746401783417,3.73916,1811.8,1811.6,1.10379]
[1746401783623,2.6354,1811.8,1811.6,1.10381]
[1746401783923,2.6354,1811.8,1811.7,1.10376]
[1746401784123,6.3234,1811.8,1811.7,1.10376]
[1746401784630,7.4271,1811.8,1811.6,1.10377]
[1746401784929,7.42714,1811.8,1811.6,1.10377]
[1746401785226,1.10376,1811.7,1811.6,1.10383]
[1746401785427,2.6354,1811.8,1811.6,1.10383]
[1746401785827,3.73915,1811.8,1811.6,1.10383]
[1746401786027,3.73915,1811.8,1811.7,1.10376]
[1746401786227,6.3234,1811.8,1811.7,1.10376]
[1746401788129,3.7391,1811.8,1811.7,1.10376]
[1746401788429,2.6354,1811.8,1811.7,1.10376]
[1746401789327,5.9325,1812.1,1811.7,1.10376]
[1746401789531,1.10358,1812.0,1811.9,1.1036]
[1746401789834,9.68996,1812.1,1812.0,1.10358]
[1746401790133,13.37796,1812.1,1812.0,1.10358]
[1746401790327,12.2744,1812.1,1812.0,1.10358]
[1746401790522,13.37792,1812.1,1812.0,1.10358]
[1746401790725,12.2744,1812.1,1812.0,1.10358]
[1746401791326,9.0666,1812.1,1812.0,1.10358]
[1746401791724,10.17017,1812.1,1812.0,1.10358]
[1746401792631,9.0666,1812.1,1812.0,1.10358]
[1746401793333,11.7477,1812.1,1812.0,1.10358]
[1746401796133,8.0597,1812.1,1812.0,1.10358]
[1746401796731,6.8958,1812.3,1812.2,1.10346]
[1746401796937,4.7914,1812.3,1812.2,1.10346]
[1746401797139,3.688,1812.3,1812.2,1.10346]
[1746401797340,3.688,1812.3,1812.2,41.90346]
[1746401798130,8.3052,1812.4,1812.3,1.1034]
[1746401798534,2.6517,1812.4,1812.3,3.9273]
[1746401798739,3.75504,1812.4,1812.2,40.8]
[1746401798925,3.75504,1812.4,1812.2,41.90341]
[1746401799129,2.6517,1812.3,1812.2,41.90341]
[1746401800238,6.3397,1812.3,1812.2,41.90341]
[1746401800633,6.3397,1812.3,1812.2,45.20103146]
[1746401801031,6.3397,1812.3,1812.2,44.78201]
[1746401801234,2.6517,1812.3,1812.2,44.78201]
[1746401801732,3.2078,1812.5,1812.2,40.8]
[1746401801927,1.1034,1812.3,1812.2,41.90342]
[1746401802131,4.7914,1812.3,1812.2,41.90341]
[1746401802330,9.2645,1812.3,1812.2,41.90341]
[1746401802534,10.3679,1812.3,1812.2,40.8]
[1746401802741,15.1779,1812.3,1812.2,41.90346]
[1746401803040,6.3936,1812.3,1812.2,1.10346]
[1746401803236,3.688,1812.3,1812.2,1.10346]
[1746401803436,3.688,1812.3,1812.2,44.77796]
[1746401803836,3.688,1812.3,1812.2,47.51456]
[1746401804136,3.688,1812.3,1812.2,51.58456]
[1746401804346,2.8588,1812.4,1812.3,1.1034]
[1746401804541,9.88749,1812.7,1812.3,2.8745]
[1746401804741,2.8588,1812.6,1812.5,1.10328]
[1746401805142,6.5468,1812.6,1812.4,2.8745]
[1746401805342,1.10331,1812.5,1812.4,1.10333]
[1746401805542,1.10331,1812.5,1812.3,1.10335]
[1746401805543,7.16993,1812.5,1812.3,1.10335]
[1746401805741,7.16993,1812.5,1812.4,1.10334]
[1746401805943,4.31113,1812.5,1812.4,1.10334]
[1746401806145,1.10334,1812.4,1812.3,1.10337]
[1746401806738,6.8958,1812.5,1812.2,45.97343]
[1746401806936,1.1034,1812.3,1812.2,40.8]
[1746401807250,6.8958,1812.3,1812.2,1.10346]
[1746401807438,3.688,1812.3,1812.2,1.10346]
[1746401809647,4.7914,1812.3,1812.2,1.10346]
[1746401809840,3.688,1812.3,1812.2,1.10346]
[1746401810641,3.688,1812.3,1812.2,3.92736]
[1746401814243,1.1034,1812.3,1812.2,1.10343]
[1746401814549,3.2078,1812.3,1812.2,1.10343]
[1746401814752,4.79139,1812.4,1812.3,1.1034]
[1746401815945,3.688,1812.4,1812.3,1.1034]
[1746401817345,3.688,1812.4,1812.3,4.3112]
[1746401817556,3.688,1812.4,1812.3,7.1997]
[1746401817748,3.688,1812.4,1812.3,13.9885]
[1746401818246,4.31092,1812.8,1812.7,1.10316]
[1746401819041,3.2078,1812.8,1812.7,1.10316]
[1746401819253,7.9989,1812.8,1812.7,1.10316]
[1746401819453,6.8958,1812.8,1812.7,1.10316]
[1746401819857,3.688,1812.8,1812.7,1.10316]
[1746401820158,2.9197,1813.0,1812.9,1.10303]
[1746401821046,6.6077,1813.0,1812.9,1.10303]
[1746401822057,3.688,1813.0,1812.9,1.10303]
[1746401822355,6.99933,1813.3,1813.2,1.10285]
[1746401823051,10.68733,1813.3,1813.2,1.10285]
[1746401823258,1.10288,1813.2,1813.1,1.10288]
[1746401823460,3.81798,1813.2,1813.1,1.10288]
[1746401823656,7.7151,1813.2,1812.7,7.2768]
[1746401823960,1.10307,1812.9,1812.8,1.10306]
[1746401824154,3.2078,1813.0,1812.9,1.10303]
[1746401824354,2.69915186,1813.2,1813.1,1.10291]
[1746401824551,1.10288,1813.2,1813.1,1.10291]
[1746401825361,1.10294,1813.1,1813.0,1.10293]
[1746401825555,4.7909,1813.2,1813.0,1.10294]
[1746401825757,3.688,1813.2,1812.9,1.10298]
[1746401825952,3.2078,1813.0,1812.6,7.35790344]
[1746401826152,1.10312,1812.8,1812.7,1.10313]
[1746401826961,1.10316,1812.7,1812.6,8.46107344]
[1746401827148,4.80243057,1812.8,1812.7,1.10316]
[1746401827353,1.10316,1812.7,1812.6,7.35790344]
[1746401827968,1.10316,1812.7,1812.6,8.46112344]
[1746401828259,4.32221057,1812.8,1812.7,1.10316]
[1746401828658,1.10328,1812.5,1812.4,2.7264]
[1746401828850,1.10334,1812.4,1812.3,7.35790344]
[1746401829051,4.79134,1812.4,1812.3,8.46128344]
[1746401829452,3.688,1812.4,1812.3,8.46128344]
[1746401830161,3.96674,1812.5,1812.4,1.10334]
[1746401830556,4.31106,1812.6,1812.5,1.10328]
[1746401830860,1.10328,1812.5,1812.4,6.67179]
[1746401831261,4.79128,1812.5,1812.4,6.67179]
[1746401831753,4.79128,1812.5,1812.4,1.10329]
[1746401833360,4.79128,1812.5,1812.3,9.6386]
[1746401833361,1.10334,1812.4,1812.3,8.08135]
[1746401833568,6.79444,1812.4,1812.3,4.061]
[1746401834163,10.48244,1812.4,1812.3,5.1644]
[1746401835267,10.48244,1812.4,1812.3,4.061]
[1746401836567,1.1034,1812.3,1812.2,1.10341]
[1746401836866,1.1034,1812.3,1812.1,2.917]
[1746401836867,1.10346,1812.2,1812.1,6.978]
[1746401837055,1.10341,1812.3,1812.1,9.73678]
[1746401837261,3.688,1812.2,1812.1,11.28932]
[1746401837769,3.688,1812.2,1812.1,18.64722344]
[1746401838157,1.10342,1812.3,1812.2,1.10346]
[1746401838559,1.10346,1812.2,1812.1,15.43938344]
[1746401838865,1.10346,1812.2,1812.1,11.41890344]
[1746401839258,4.79146,1812.2,1812.1,12.52242344]
[1746401839567,4.79146,1812.2,1812.1,11.41890344]
[1746401839762,7.99926,1812.2,1812.1,7.35790344]
[1746401841766,7.99926,1812.2,1812.0,1.10357]
[1746401841767,1.10352,1812.1,1812.0,1.10357]
[1746401842166,4.79143,1812.3,1812.2,1.10346]
[1746401842566,3.688,1812.3,1812.2,1.10346]
[1746401842966,3.688,1812.3,1812.2,3.94556]
[1746401843362,5.54403,1812.5,1812.1,10.081]
[1746401843569,1.10346,1812.2,1812.1,5.16448]
[1746401843768,1.10346,1812.2,1812.1,4.061]
[1746401843966,3.88916,1812.2,1812.1,1.10352]
[1746401844275,7.57716,1812.2,1812.1,1.10352]
[1746401844669,3.688,1812.2,1812.1,1.10352]
[1746401845060,4.79146,1812.2,1812.1,1.10352]
[1746401845267,1.10346,1812.2,1812.1,4.00012]
[1746401845571,1.10352,1812.1,1812.0,8.46143344]
[1746401846273,4.79152,1812.1,1812.0,8.46143344]
[1746401846472,4.79152,1812.1,1812.0,11.36843344]
[1746401846775,3.688,1812.1,1812.0,11.36843344]
[1746401847074,3.688,1812.1,1812.0,14.57623344]
[1746401847373,4.79152,1812.1,1812.0,11.66923344]
[1746401847574,6.3468,1812.1,1812.0,8.46143344]
[1746401847769,10.65812,1812.1,1812.0,7.35790344]
[1746401847970,7.45032,1812.1,1812.0,7.35790344]
[1746401848268,15.65812,1812.1,1812.0,7.35790344]
[1746401848775,1.10358,1812.0,1811.9,11.03685517]
[1746401849073,1.10358,1812.0,1811.8,7.35839755]
[1746401849074,1.10364,1811.9,1811.8,7.35839755]
[1746401849262,9.97344,1811.9,1811.8,7.35839755]
[1746401849468,17.70904,1811.9,1811.8,7.35839755]
[1746401850171,16.39704,1811.9,1811.8,7.35839755]
[1746401850469,1.1037,1811.8,1811.7,9.85645616]
[1746401850675,1.10383,1811.6,1811.5,14.58942208]
[1746401850864,4.31163,1811.6,1811.5,14.58942208]
[1746401851071,7.99963,1811.6,1811.5,14.58942208]
[1746401851375,7.99963,1811.6,1811.5,15.69331208]
[1746401851873,7.99963,1811.6,1811.5,14.58942208]
[1746401852075,7.99963,1811.6,1811.5,15.69331208]
[1746401852283,7.99963,1811.6,1811.5,18.40701208]
[1746401852781,6.8958,1811.6,1811.5,18.40701208]
[1746401852978,3.688,1811.6,1811.5,18.40701208]
[1746401853179,9.97349,1811.9,1811.5,18.40701208]
[1746401853379,9.97349,1811.9,1811.8,1.1037]
[1746401854186,1.10373,1811.8,1811.7,1.10373]
[1746401854392,1.10373,1811.8,1811.7,3.81743]
[1746401854692,1.10373,1811.8,1811.7,2.7137]
[1746401855188,4.79173,1811.8,1811.7,2.7137]
[1746401855396,7.56323,1811.8,1811.7,2.7137]
[1746401855883,3.688,1811.8,1811.7,3.81746]
[1746401856586,4.7917,1811.8,1811.7,2.7137]
[1746401856789,4.7917,1811.8,1811.5,1.10383]
[1746401856790,1.10385,1811.6,1811.5,1.10383]
[1746401857087,4.79185,1811.6,1811.5,1.10383]
[1746401858892,4.79185,1811.6,1811.5,2.7084]
[1746401859579,4.79185,1811.6,1811.5,3.81229]
[1746401859780,4.79185,1811.6,1811.5,2.7084]
[1746401861591,4.79185,1811.6,1811.5,3.81229]
[1746401861791,4.79185,1811.6,1811.5,2.7084]
[1746401861988,4.79185,1811.6,1811.5,3.81229]
[1746401862590,4.79185,1811.6,1811.5,2.7084]
[1746401863393,4.79185,1811.6,1811.5,3.81229]
[1746401863584,4.79185,1811.6,1811.5,2.7084]
[1746401863988,7.50435,1811.6,1811.5,2.7084]
[1746401864390,1.10395,1811.4,1811.3,5.9429]
[1746401864895,6.68872,1811.5,1811.4,1.10395]
[1746401865085,10.37672,1811.5,1811.4,3.86635]
[1746401866587,10.37672,1811.5,1811.4,2.7624]
[1746401866791,13.58452,1811.5,1811.4,2.7624]
[1746401867189,13.58452,1811.5,1811.4,3.86635]
[1746401867190,10.37672,1811.5,1811.4,3.86635]
[1746401867594,10.37672,1811.5,1811.4,2.7624]
[1746401868000,4.79192,1811.5,1811.4,3.86635]
[1746401868498,3.688,1811.5,1811.4,3.86635]
[1746401868700,4.79189,1811.5,1811.4,3.86635]
[1746401869199,3.688,1811.5,1811.4,3.86635]
[1746401870203,4.79189,1811.5,1811.4,3.86635]
[1746401870599,3.688,1811.5,1811.4,3.86635]
[1746401871001,3.2078,1811.9,1811.8,1.1037]
[1746401871198,1.1036,1812.0,1811.9,1.10357]
[1746401871503,1.10356,1812.1,1812.0,1.10353]
[1746401872200,4.79156,1812.1,1812.0,44.82643]
[1746401872695,4.79156,1812.1,1812.0,4.02643]
[1746401873603,3.688,1812.1,1812.0,4.02643]
[1746401876495,3.688,1812.1,1812.0,7.23423]
[1746401876697,3.688,1812.1,1812.0,4.02643]
[1746401877000,3.688,1812.1,1812.0,7.23423]
[1746401877195,1.10335,1812.4,1812.3,1.10337]
[1746401878103,4.79135,1812.4,1812.3,1.10337]